[Event "Perth AUS Open"]
[Site "?"]
[Date "2023.01.09"]
[Round "10.4"]
[White "Fu Yihe, Rebo"]
[Black "Tin Jingyao"]
[Result "0-1"]
[ECO "C77"]
[WhiteElo "2149"]
[BlackElo "2598"]
[PlyCount "68"]
[EventDate "2023.01.??"]
[EventRounds "11"]
[EventCountry "AUS"]
[SourceVersionDate "2023.01.02"]
[TimeControl "40/90+30:0"]

1. e4 {[%emt 0:00:00]} e5 {[%emt 0:00:00]} 2. Nf3 {[%emt 0:00:00]} Nc6 {[%emt 0:00:00]} 3. Bb5 {[%emt 0:00:00]} g6 {[%emt 0:00:00]} 4. c3 {[%emt 0:03:50]} a6 {[%emt 0:00:00]} 5. Ba4 {[%emt 0:00:00]} d6 {[%emt 0:00:00]} 6. h3 {[%emt 0:00:00]} Bg7 {[%emt 0:00:00]} 7. d3 {[%emt 0:00:00]} Nf6 {[%emt 0:00:00]} 8. O-O {[%emt 0:00:00]} O-O {[%emt 0:00:00]} 9. Re1 {[%emt 0:00:00]} b5 {[%emt 0:00:00]} 10. Bb3 {[%emt 0:00:00]} Na5 {[%emt 0:00:00]} 11. Bc2 {[%emt 0:00:00]} c5 {[%emt 0:00:00]} 12. d4 {[%emt 0:00:00]} Qc7 {[%emt 0:00:00]} 13. d5 {[%emt 0:00:00]} c4 {[%emt 0:00:00]} 14. a4 {[%emt 0:00:00]} Bd7 {[%emt 0:00:00]} 15. Be3 {[%emt 0:00:00]} Rfb8 {[%emt 0:00:00]} 16. Nbd2 {[%emt 0:00:00]} b4 {[%emt 0:00:00]} 17. Qc1 {[%emt 0:00:00]} Nh5 {[%emt 0:00:00]} 18. Nf1 {[%emt 0:00:00]} bxc3 {[%emt 0:00:00]} 19. bxc3 {[%emt 0:00:00]} Nb3 {[%emt 0:00:00]} 20. Bxb3 {[%emt 0:00:00]} cxb3 {[%emt 0:00:00]} 21. Qb2 {[%emt 0:00:00]} Nf4 {[%emt 0:00:00]} 22. Bxf4 {[%emt 0:00:00]} exf4 {[%emt 0:00:00]} 23. Nd4 {[%emt 0:00:00]} Bxd4 {[%emt 0:00:00]} 24. cxd4 {[%emt 0:00:00]} Qc2 {[%emt 0:00:00]} 25. Qa3 {[%emt 0:00:00]} b2 {[%emt 0:00:00]} 26. Rab1 {[%emt 0:00:00]} Bxa4 {[%emt 0:00:00]} 27. Qxd6 {[%emt 0:00:00]} Qc3 {[%emt 0:01:49]} 28. Qc5 {[%emt 0:00:00]} Qxc5 {[%emt 0:01:13]} 29. dxc5 {[%emt 0:00:00]} Bc2 {[%emt 0:00:08]} 30. c6 {[%emt 0:00:00]} Bxb1 {[%emt 0:00:10]} 31. Rxb1 {[%emt 0:00:00]} a5 {[%emt 0:02:41]} 32. c7 {[%emt 0:00:00]} a4 {[%emt 0:00:56]} 33. d6 {[%emt 0:00:00]} a3 {[%emt 0:00:18]} 34. d7 {[%emt 0:00:00]} Rd8 {[%emt 0:00:28]} 0-1